bitfinex/quotes_SOLUSD_20250308
["timestamp","ask_amount","ask_price","bid_price","bid_amount"]
[1741399526824,82.3,140.17,140.09,32.0038]
[1741399527024,20.92398508,140.16,140.1,20.92398508]
[1741399527245,20.92398508,140.16,140.1,20.95698508]
[1741399527446,82.3,140.17,140.11,20.92398508]
[1741399527649,0.03,140.16,140.12,20.92398508]
[1741399527854,0.03,140.16,140.13,7.1362]
[1741399528058,0.03,140.16,140.11,28.06118508]
[1741399528753,0.03,140.16,140.11,7.1372]
[1741399529053,82.3,140.15,140.1,20.95698508]
[1741399529253,103.22398508,140.15,140.1,0.033]
[1741399529560,82.3,140.15,140.1,7.1707]
[1741399530854,20.95398508,140.16,140.1,7.1707]
[1741399530855,103.22398508,140.14,140.1,0.033]
[1741399531067,20.92398508,140.12,140.1,0.033]
[1741399531972,103.22398508,140.11,140.1,0.033]
[1741399532844,82.3,140.11,140.1,0.033]
[1741399533060,103.22398508,140.11,140.1,0.033]
[1741399533561,109.64748508,140.11,140.1,0.033]
[1741399533759,82.3,140.11,140.1,0.033]
[1741399535674,103.22398508,140.11,140.1,0.033]
[1741399536348,109.64748508,140.11,140.1,0.033]
[1741399536674,27.34748508,140.11,140.1,0.033]
[1741399537055,20.92398508,140.11,140.1,0.033]
[1741399537248,27.34708508,140.12,140.1,0.033]
[1741399537577,27.34748508,140.11,140.1,0.033]
[1741399539153,20.92398508,140.11,140.1,0.033]
[1741399539377,27.34748508,140.11,140.1,0.033]
[1741399540876,20.92398508,140.11,140.1,0.033]
[1741399541262,27.34748508,140.11,140.1,0.033]
[1741399546770,20.92398508,140.12,140.1,0.033]
[1741399546976,20.92398508,140.11,140.1,0.033]
[1741399547793,27.34748508,140.11,140.1,0.033]
[1741399548470,20.92398508,140.11,140.1,0.033]
[1741399550191,6.4226,140.13,140.1,0.033]
[1741399550392,20.92398508,140.11,140.1,0.033]
[1741399551498,27.34748508,140.11,140.1,0.033]
[1741399555279,6.4231,140.12,140.1,0.033]
[1741399555575,20.92398508,140.11,140.1,0.033]
[1741399556405,27.34748508,140.11,140.1,0.033]
[1741399559398,43.40628508,140.11,140.08,0.033]
[1741399559596,20.92398508,140.09,140.08,0.033]
[1741399559909,20.92398508,140.07,140.06,0.033]
[1741399560408,20.92398508,140.07,139.98,0.033]
[1741399560409,91.84797016,140.07,139.98,0.033]
[1741399560613,20.92398508,140.01,139.98,0.033]
[1741399560909,6.4249,140.08,140.0,20.92398508]
[1741399561082,20.92398508,140.06,140.0,20.92398508]
[1741399561281,20.92398508,140.05,139.99,20.92398508]
[1741399561494,82.3,140.04,140.0,20.92398508]
[1741399561697,82.3,140.04,139.98,0.033]
[1741399561878,82.3,140.04,140.02,22.58608508]
[1741399562080,82.3,140.04,140.03,20.92398508]
[1741399562709,82.3,140.04,140.03,28.06528508]
[1741399564607,82.3,140.04,140.02,36.74768508]
[1741399564786,82.3,140.04,140.02,15.8237]
[1741399565287,82.3,140.04,140.03,20.92398508]
[1741399565492,0.03,140.05,140.03,20.92398508]
[1741399566580,0.03,140.05,140.04,26.99898508]
[1741399566787,0.03,140.05,140.04,34.13978508]
[1741399567608,82.3,140.12,140.04,51.99178508]
[1741399567815,82.3,140.12,140.07,20.92398508]
[1741399568211,103.22398508,140.12,140.04,31.0678]
[1741399568521,103.22398508,140.11,140.05,20.92398508]
[1741399568683,82.3,140.11,140.06,20.92398508]
[1741399568892,82.3,140.11,140.07,20.92398508]
[1741399569390,82.3,140.11,140.08,20.92398508]
[1741399569792,82.3,140.11,140.05,20.92398508]
[1741399570199,109.64748508,140.11,140.05,20.92398508]
[1741399571215,20.92398508,140.1,140.04,26.99898508]
[1741399571793,20.92398508,140.1,140.04,6.075]
[1741399572011,20.92398508,140.1,140.04,26.99898508]
[1741399572923,6.4249,140.08,140.04,6.075]
[1741399573212,27.34888508,140.08,140.02,8.6821]
[1741399573416,27.34888508,140.08,140.02,29.60608508]
[1741399573625,82.3,140.09,140.04,20.92398508]
[1741399573983,103.22398508,140.09,140.03,20.92398508]
[1741399574186,20.92398508,140.08,140.02,36.74778508]
[1741399576021,27.34898508,140.08,140.02,36.74778508]
[1741399576720,27.34898508,140.08,140.02,29.60608508]
[1741399577606,27.34898508,140.08,140.02,8.6821]
[1741399577793,27.34898508,140.08,140.02,29.60608508]
[1741399577999,6.425,140.08,140.02,29.60608508]
[1741399578590,6.425,140.08,140.0,3.54125502]
[1741399578591,20.92398508,140.05,140.0,0.033]
[1741399578918,20.92398508,140.04,140.0,0.033]
[1741399579116,82.3,140.05,140.0,0.033]
[1741399579285,82.3,140.05,140.0,28.09958508]
[1741399579486,111.77588508,140.04,140.0,0.033]
[1741399579795,90.8519,140.04,140.0,0.033]
[1741399579993,82.3,140.04,140.01,20.92398508]
[1741399580199,88.7268,140.04,140.0,20.95698508]
[1741399580407,20.92398508,140.03,140.0,0.033]
[1741399581127,103.22398508,140.02,140.0,0.033]
[1741399581425,24.0554,140.04,140.0,0.033]
[1741399581426,103.22398508,140.01,140.0,0.033]
[1741399582131,109.65208508,140.01,140.0,0.033]
[1741399584320,82.3,140.01,140.0,0.033]
[1741399584929,88.7281,140.01,140.0,0.033]
[1741399585223,109.65208508,140.01,140.0,0.033]
[1741399585539,27.35208508,140.01,140.0,0.033]
[1741399585906,48.27607016,140.01,140.0,0.0001]
[1741399586611,27.35208508,140.01,140.0,0.0001]
[1741399587748,48.27607016,140.01,140.0,0.0001]
[1741399588120,50.27607016,140.01,140.0,0.0001]
[1741399588432,50.0,139.99,139.96,0.033]
[1741399588745,20.92398508,139.97,139.96,0.033]
[1741399590233,27.35388508,139.97,139.96,0.033]
[1741399590813,7.02,139.98,139.96,0.033]
[1741399590814,13.4496,139.98,139.96,0.033]
[1741399591012,20.92398508,139.98,139.96,0.033]
[1741399591724,20.92398508,139.97,139.96,0.033]
[1741399592428,27.35388508,139.97,139.96,0.033]
[1741399592630,6.4299,139.97,139.96,0.033]
[1741399592858,6.429,139.99,139.96,0.033]
[1741399593134,20.92398508,139.97,139.96,0.033]
[1741399594631,82.267,139.95,139.93,0.033]
[1741399594824,20.92398508,139.94,139.93,0.033]
[1741399596613,27.35528508,139.94,139.93,0.033]
[1741399596817,7.02,139.97,139.93,0.033]
[1741399597015,20.92398508,139.96,139.93,0.033]
[1741399597238,20.92398508,139.95,139.93,0.033]
[1741399598042,20.92398508,139.94,139.93,0.033]
[1741399599752,6.4309,139.95,139.93,0.033]
[1741399599954,7.02,139.97,139.93,0.033]
[1741399599955,27.35528508,139.94,139.93,0.033]
[1741399600349,20.92398508,139.94,139.93,0.033]
[1741399600526,20.92398508,139.95,139.93,0.033]
[1741399601153,20.92398508,139.96,139.93,0.033]
[1741399601848,20.92398508,139.95,139.93,0.033]
[1741399602051,20.92398508,139.94,139.93,0.033]
[1741399602244,34.37528508,139.94,139.93,0.033]
[1741399602935,35.89888508,139.94,139.93,0.033]
[1741399603835,108.82287016,139.94,139.86,0.033]
[1741399604035,20.92398508,139.87,139.86,0.033]
[1741399604235,20.92398508,139.89,139.86,0.033]
[1741399604560,20.92398508,139.91,139.86,0.033]
[1741399604760,20.92398508,139.89,139.86,0.033]
[1741399604958,20.92398508,139.88,139.86,0.033]
[1741399605331,33.612155,139.88,139.86,0.033]
[1741399605747,82.3,139.87,139.86,0.033]
[1741399607451,88.7345,139.87,139.86,0.033]
[1741399607960,82.3,139.87,139.86,0.033]
[1741399608769,6.4332,139.9,139.86,0.033]
[1741399609252,40.045355,139.9,139.86,0.033]
[1741399609868,115.912155,139.89,139.86,0.033]
[1741399610066,82.3,139.89,139.86,0.033]
[1741399611467,6.434,139.88,139.86,0.033]
[1741399612064,82.3,139.89,139.86,35.170455]
[1741399613750,82.3,139.89,139.86,42.320255]
[1741399614055,82.3,139.89,139.87,33.612155]
[1741399614880,82.3,139.89,139.86,42.320255]
[1741399616363,82.3,139.89,139.86,1.5583]
[1741399616668,88.7338,139.89,139.86,1.5583]
[1741399616870,82.3,139.89,139.86,1.5583]
[1741399617378,82.3,139.89,139.86,35.170455]
[1741399617570,82.3,139.89,139.86,42.320355]
[1741399617777,82.3,139.89,139.86,8.7082]
[1741399618065,82.3,139.89,139.87,33.612155]
[1741399618278,0.03,139.92,139.88,33.612155]
[1741399618452,0.03,139.92,139.91,33.612155]
[1741399618859,0.03,139.92,139.89,33.612155]
[1741399620078,0.03,139.92,139.89,40.760555]
[1741399621077,0.03,139.92,139.91,33.612155]
[1741399622481,0.03,139.92,139.91,40.759555]
[1741399623689,0.03,139.92,139.88,46.910355]
[1741399623858,0.03,139.92,139.88,6.1494]
[1741399624060,0.03,139.92,139.88,46.910355]
[1741399624282,0.03,139.92,139.89,33.612155]
[1741399624575,0.03,139.92,139.88,46.910355]
[1741399624950,0.03,139.92,139.88,6.1494]
[1741399625153,0.03,139.92,139.87,33.612155]
[1741399625396,0.03,139.92,139.86,29.70035228]
[1741399625887,0.03,139.92,139.89,20.99215228]
[1741399626181,0.03,139.92,139.91,0.033]
[1741399638382,0.03,139.92,139.91,28.17255228]
[1741399639688,0.03,139.92,139.91,0.033]
[1741399640475,0.03,139.92,139.91,21.02515228]
[1741399641301,0.03,139.92,139.91,0.033]
[1741399642305,0.03,139.92,139.91,21.02515228]
[1741399644601,0.03,139.92,139.91,28.17255228]
[1741399645909,0.03,139.92,139.91,29.70155228]
[1741399646076,82.3,139.97,139.91,47.57015228]
[1741399646282,82.33,140.0,139.96,20.99215228]
[1741399647707,82.33,140.0,139.97,20.99215228]
[1741399648583,82.33,140.0,139.96,28.13685228]
[1741399649407,82.33,140.0,139.97,20.99215228]
[1741399650608,82.33,140.0,139.98,20.99215228]
[1741399651416,82.33,140.0,139.96,7.1447]
[1741399651716,82.33,140.0,139.97,20.99215228]
[1741399652718,88.7587,140.0,139.95,27.20345228]
[1741399652909,109.75085228,140.0,139.94,20.99215228]
[1741399653109,20.99215228,139.99,139.93,20.99215228]
[1741399653305,103.29215228,139.98,139.91,21.02515228]
[1741399653620,103.29215228,139.98,139.91,0.033]
[1741399653790,20.99215228,139.96,139.91,0.033]
[1741399653987,20.99215228,139.94,139.91,0.033]
[1741399654195,103.29215228,139.93,139.91,0.033]
[1741399654404,103.29215228,139.92,139.91,0.033]
[1741399654621,27.42435228,139.92,139.91,0.033]
[1741399660398,27.42395228,139.93,139.91,0.033]
[1741399660598,7.0,139.95,139.91,0.033]
[1741399661021,89.3,139.95,139.91,0.033]
[1741399661214,110.29215228,139.95,139.91,0.033]
[1741399662523,6.4313,139.94,139.91,0.033]
[1741399662727,110.29215228,139.95,139.91,0.033]
[1741399662939,95.7309,139.95,139.91,0.033]
[1741399663802,82.3,139.95,139.91,0.033]
[1741399664001,82.3,139.95,139.91,21.02515228]
[1741399664304,82.3,139.98,139.93,20.99215228]
[1741399664510,88.7296,139.98,139.93,20.99215228]
[1741399665519,20.99215228,139.97,139.91,0.033]
[1741399665714,20.99215228,139.97,139.91,21.02515228]
[1741399665916,103.29215228,139.96,139.91,0.033]
[1741399666115,20.99215228,139.95,139.91,0.033]
[1741399666326,20.99215228,139.94,139.91,0.033]
[1741399666528,103.29215228,139.94,139.91,0.033]
[1741399666714,82.3,139.94,139.91,0.033]
[1741399666914,82.3,139.94,139.91,21.02515228]
[1741399667728,82.3,139.94,139.92,20.99215228]
[1741399667958,82.3,139.94,139.91,7.1801]
[1741399668127,82.3,139.94,139.92,20.99215228]
[1741399668934,82.3,139.94,139.91,21.02515228]
[1741399669106,82.3,139.94,139.91,0.033]
[1741399670345,88.7315,139.94,139.91,0.033]
[1741399671016,109.72365228,139.94,139.91,0.033]
[1741399671721,103.29215228,139.93,139.91,0.033]
[1741399671924,82.3,139.92,139.91,0.033]
[1741399672131,20.99215228,139.93,139.91,0.033]
[1741399672339,20.99215228,139.92,139.91,0.033]
[1741399672522,27.42435228,139.92,139.91,0.033]
[1741399672729,43.50495228,139.92,139.86,0.033]
[1741399672937,103.29215228,139.91,139.86,0.033]
[1741399673540,20.99215228,139.88,139.86,0.033]
[1741399673731,103.29215228,139.88,139.86,0.033]
[1741399674131,82.3,139.88,139.86,0.033]
[1741399674350,6.4345,139.87,139.86,0.033]
[1741399674743,103.29215228,139.88,139.86,0.033]
[1741399674744,88.7342,139.88,139.86,0.033]
[1741399675061,82.3,139.88,139.86,0.033]
[1741399675728,82.3,139.92,139.87,20.99215228]
[1741399675929,20.99215228,139.93,139.86,0.033]
[1741399676155,7.03,139.94,139.89,20.99215228]
[1741399676462,82.3,139.92,139.89,20.99215228]
[1741399677134,103.29215228,139.92,139.86,0.033]
[1741399677357,103.29215228,139.92,139.86,21.02515228]
[1741399677565,82.3,139.92,139.87,20.99215228]
[1741399678239,82.3,139.92,139.89,20.99215228]
[1741399679334,82.3,139.92,139.88,20.99215228]
[1741399679757,103.29215228,139.92,139.86,28.17505228]
[1741399680056,103.29215228,139.92,139.86,21.02515228]
[1741399680461,103.29215228,139.92,139.86,28.17495228]
[1741399680661,82.3,139.92,139.88,20.99215228]
[1741399681137,82.3,139.92,139.87,28.14125228]
[1741399681336,82.3,139.92,139.87,20.99215228]
[1741399681638,103.29215228,139.92,139.86,28.17495228]
[1741399681863,82.3,139.91,139.86,28.17495228]
[1741399682139,82.3,139.91,139.86,21.02515228]
[1741399683451,82.3,139.91,139.86,28.17505228]
[1741399683661,82.3,139.91,139.87,20.99215228]
[1741399683851,82.3,139.91,139.86,28.17505228]
[1741399684966,88.7328,139.91,139.86,28.17505228]
[1741399685544,82.3,139.91,139.86,28.17505228]
[1741399685740,82.3,139.9,139.86,0.033]
[1741399686059,103.29215228,139.9,139.86,0.033]
[1741399686565,82.3,139.9,139.86,0.033]
[1741399687371,82.3,139.9,139.89,20.99215228]
[1741399687541,82.3,139.9,139.88,20.99215228]
[1741399688048,82.3,139.9,139.87,7.1494]
[1741399688246,82.3,139.9,139.88,20.99215228]
[1741399688447,82.3,139.9,139.87,28.14155228]
[1741399689369,82.3,139.9,139.86,21.02515228]
[1741399689673,82.3,139.89,139.86,0.033]
[1741399690168,88.7337,139.89,139.86,0.033]
[1741399691284,82.3,139.89,139.86,0.033]
[1741399691452,82.3,139.88,139.86,0.033]
[1741399692869,88.7341,139.88,139.86,0.033]
[1741399693577,82.3,139.87,139.86,0.033]
[1741399693780,109.72665228,139.87,139.86,0.033]
[1741399693977,27.42665228,139.87,139.86,0.033]
[1741399695762,29.07315228,139.89,139.86,0.033]
[1741399695964,8.081,139.89,139.86,0.033]
[1741399696482,29.07315228,139.89,139.86,0.033]
[1741399696849,1.6473,139.89,139.86,0.033]
[1741399697966,20.99215228,139.87,139.86,0.033]
[1741399699984,27.42665228,139.87,139.86,0.033]
[1741399700284,132.3,139.86,139.82,0.033]
[1741399700487,20.99215228,139.83,139.82,0.033]
[1741399700677,22.53925228,139.83,139.82,0.033]
[1741399701257,22.53925228,139.83,139.79,0.033]
[1741399701460,20.99215228,139.8,139.79,0.033]
[1741399702085,27.42985228,139.8,139.79,0.033]
[1741399702382,34.42985228,139.8,139.79,0.033]
[1741399703386,7.0,139.8,139.79,0.033]
[1741399705758,28.97605228,139.83,139.79,0.033]
[1741399706988,20.99215228,139.82,139.79,0.033]
[1741399707171,20.99215228,139.81,139.79,0.033]
[1741399707373,70.99215228,139.8,139.79,0.033]
[1741399707564,20.99215228,139.8,139.79,0.033]
[1741399707891,20.99215228,139.81,139.79,0.033]
[1741399709390,20.99215228,139.8,139.79,0.033]
[1741399710377,20.99215228,139.82,139.79,0.033]
[1741399710991,20.99215228,139.81,139.79,0.033]
[1741399711984,6.4371,139.82,139.79,0.033]
[1741399711985,27.42925228,139.82,139.79,0.033]
[1741399712386,20.99215228,139.81,139.79,0.033]
[1741399713391,6.4374,139.81,139.79,0.033]
[1741399714216,20.99215228,139.82,139.79,0.033]
[1741399714422,6.4354,139.85,139.79,0.033]
[1741399714715,27.42725228,139.86,139.8,20.99215228]
[1741399714905,6.4351,139.86,139.81,20.99215228]
[1741399715208,27.99215228,139.87,139.81,20.99215228]
[1741399715399,27.99215228,139.89,139.83,20.99215228]
[1741399715713,82.3,139.85,139.84,20.99215228]
[1741399716009,82.3,139.85,139.83,20.99215228]
[1741399716684,82.3,139.85,139.84,20.99215228]
[1741399717000,82.3,139.85,139.84,27.42405228]
[1741399718499,82.3,139.85,139.84,6.4319]
[1741399719083,82.3,139.85,139.81,20.99215228]
[1741399720614,82.3,139.85,139.82,20.99215228]
[1741399724017,88.7356,139.85,139.82,20.99215228]
[1741399724922,88.7356,139.85,139.79,7.1865]
[1741399725100,103.29215228,139.84,139.79,0.033]
[1741399725697,82.3,139.83,139.79,0.033]
[1741399727195,6.4368,139.82,139.79,0.033]
[1741399727394,82.3,139.81,139.79,0.033]
[1741399729308,6.4377,139.8,139.79,0.033]
[1741399730402,88.7374,139.81,139.79,0.033]
[1741399731499,109.72955228,139.81,139.79,0.033]
[1741399731700,82.3,139.8,139.79,0.033]
[1741399733216,88.7377,139.8,139.79,0.033]
[1741399733795,82.3,139.8,139.79,0.033]
[1741399735222,88.7377,139.8,139.79,0.033]
[1741399735415,6.4377,139.8,139.79,0.033]
[1741399736929,6.4368,139.82,139.79,0.033]
[1741399737123,6.4365,139.83,139.79,0.033]
[1741399738314,27.42865228,139.83,139.79,0.033]
[1741399738634,6.4365,139.83,139.79,0.033]
[1741399740804,6.466,139.84,139.8,20.99215228]
[1741399741231,82.3,139.83,139.8,20.99215228]
[1741399742834,82.3,139.83,139.82,20.99215228]
[1741399745908,82.3,139.83,139.82,28.14415228]
[1741399746828,82.3,139.83,139.82,20.99215228]
[1741399749033,82.3,139.83,139.82,28.14415228]
[1741399749652,82.3,139.83,139.82,20.99215228]
[1741399750853,82.3,139.83,139.82,28.14415228]
[1741399751760,0.03,139.84,139.82,28.14415228]
[1741399751950,0.03,139.84,139.83,20.99215228]
[1741399752147,0.03,139.84,139.83,28.14365228]
[1741399756346,0.03,139.91,139.85,6.0425]
[1741399756649,0.03,139.91,139.9,20.99215228]
[1741399758448,0.03,139.91,139.9,28.14005228]
[1741399758649,0.03,139.91,139.9,20.99215228]
[1741399758855,0.03,139.91,139.9,28.14005228]
[1741399759053,0.03,139.91,139.9,29.76235228]
[1741399765167,0.03,139.91,139.9,22.61445228]
[1741399766353,0.03,139.91,139.9,20.99215228]
[1741399771574,0.03,139.91,139.9,28.14005228]
[1741399771775,0.03,139.91,139.9,49.13220456]
[1741399771985,0.03,139.92,139.9,49.13220456]
[1741399772287,0.03,139.92,139.91,20.99215228]
[1741399772896,0.03,139.92,139.91,27.11685228]
[1741399773896,0.03,139.92,139.91,34.26425228]
[1741399774061,0.03,139.92,139.91,55.25640456]
[1741399774373,0.03,139.94,139.91,74.63210456]
[1741399774567,0.03,139.94,139.93,41.98430456]
[1741399775992,0.03,139.94,139.93,49.13070456]
[1741399776291,0.03,139.97,139.93,66.99670456]
[1741399776484,0.03,139.97,139.96,20.99215228]
[1741399778068,0.03,139.97,139.96,28.13695228]
[1741399782369,0.03,139.98,139.96,28.13695228]
[1741399782669,0.03,139.98,139.97,27.95215228]
[1741399783199,0.03,140.0,139.97,35.54145228]
[1741399783394,0.03,140.0,139.97,60.54665228]
[1741399783695,0.03,140.0,139.99,41.98430456]
[1741399783882,0.03,140.0,139.99,20.99215228]
[1741399787595,0.03,140.0,139.99,28.13545228]
[1741399788311,0.03,140.0,139.99,49.12760456]
[1741399789005,0.03,140.06,139.99,69.63880083]
[1741399789212,0.03,140.06,140.05,20.99215228]
[1741399790090,0.03,140.06,140.04,20.99215228]
[1741399790320,0.03,140.06,140.02,20.99215228]
[1741399792821,0.03,140.06,140.03,20.99215228]
[1741399793617,0.03,140.06,140.05,20.99215228]
[1741399794127,0.03,140.06,140.03,20.99215228]
[1741399795318,0.03,140.06,140.04,20.99215228]
[1741399795507,0.03,140.06,140.05,20.99215228]
[1741399798140,0.03,140.06,140.03,20.99215228]
[1741399799519,0.03,140.06,140.04,20.99215228]
[1741399801235,0.03,140.06,140.0,20.99215228]
[1741399801434,88.7262,140.05,140.01,20.99215228]
[1741399801611,6.1814,140.04,139.99,20.99215228]
[1741399802454,6.1814,140.04,140.02,20.99215228]
[1741399802669,6.1814,140.04,140.01,20.99215228]
[1741399803339,6.1814,140.04,140.0,20.99215228]
[1741399803528,12.6084,140.04,140.0,20.99215228]
[1741399803952,12.6084,140.04,140.01,20.99215228]
[1741399804429,6.1814,140.04,140.01,20.99215228]
[1741399804634,82.3,140.05,140.03,20.99215228]
[1741399805133,82.3,140.05,140.0,20.99215228]
[1741399805433,82.3,140.05,140.03,20.99215228]
[1741399806154,0.03,140.04,140.01,7.1422]
[1741399806528,0.03,140.04,140.03,20.99215228]
[1741399807535,0.03,140.04,140.03,28.13345228]
[1741399808830,0.03,140.06,140.03,28.13345228]
[1741399809031,0.03,140.06,140.05,41.98430456]
[1741399809638,0.03,140.06,140.05,49.12460456]
[1741399811039,0.03,140.06,140.05,28.13245228]
[1741399813880,0.03,140.06,140.05,20.99215228]
[1741399814873,0.03,140.06,140.04,20.99215228]
[1741399815067,0.03,140.06,140.03,20.99215228]
[1741399815842,6.4558,140.06,139.99,14.1159]
[1741399816040,88.7558,140.06,140.01,20.99215228]
[1741399816242,20.99215228,140.05,139.99,21.02515228]
[1741399818058,88.7267,140.04,139.99,21.02515228]
[1741399818968,103.29215228,140.03,139.99,0.033]
[1741399819182,82.3,140.02,139.99,0.033]
[1741399820746,82.3,140.02,140.0,20.99215228]
[1741399820946,88.7277,140.02,139.99,21.02515228]
[1741399821270,88.7277,140.02,139.99,0.033]
[1741399821977,1.5843,140.01,139.99,0.033]
[1741399822373,6.4285,140.0,139.99,0.033]
[1741399824149,8.0125,140.01,139.99,0.033]
[1741399824354,29.00465228,140.01,139.99,0.033]
[1741399824572,20.99215228,140.0,139.99,0.033]
[1741399825065,29.00465228,140.01,139.99,0.033]
[1741399825376,8.0125,140.01,139.99,0.033]
[1741399827277,20.99215228,140.0,139.99,0.033]
[1741399827981,29.00465228,140.01,139.99,0.033]
[1741399828776,8.0125,140.01,139.99,0.033]
[1741399830059,1.5843,140.01,139.99,0.033]
[1741399830285,20.99215228,140.03,139.99,0.033]
[1741399830286,6.4271,140.03,139.99,0.033]
[1741399830854,6.4271,140.03,139.99,21.02515228]
[1741399831056,8.0531,140.04,140.0,20.99215228]
[1741399831778,0.03,140.05,140.01,20.99215228]
[1741399831997,6.4563,140.05,140.0,20.99215228]
[1741399835893,20.99215228,140.04,139.99,0.033]
[1741399836085,20.99215228,140.02,139.99,0.033]
[1741399836896,27.14535228,140.03,139.99,0.033]
[1741399837094,6.4563,140.05,139.99,0.033]
[1741399837396,82.3,140.04,140.0,20.99215228]
[1741399837879,82.3,140.04,139.99,28.16835228]
[1741399838397,88.7269,140.04,139.99,28.16835228]
[1741399839887,82.3,140.04,140.0,20.99215228]
[1741399840196,82.3,140.04,140.01,20.99215228]
[1741399840375,82.3,140.04,140.02,20.99215228]
[1741399841499,82.3,140.04,140.01,20.99215228]
[1741399843227,82.3,140.04,139.99,21.02515228]
[1741399843387,88.7267,140.04,139.99,21.02515228]
[1741399843701,20.99215228,140.02,139.99,0.033]
[1741399843873,82.3,140.03,139.99,0.033]
[1741399843874,27.42025228,140.01,139.99,0.033]
[1741399844075,109.72025228,140.01,139.99,0.033]
[1741399844583,88.7281,140.01,139.99,0.033]
[1741399845793,109.72025228,140.01,139.99,0.033]
[1741399845999,20.99215228,140.0,139.99,0.033]
[1741399847915,6.4285,140.0,139.99,0.033]
[1741399849608,27.42065228,140.0,139.99,0.033]
[1741399850817,6.4285,140.0,139.99,0.033]
[1741399852010,27.42065228,140.0,139.99,0.033]
[1741399859398,6.4285,140.0,139.99,0.033]
[1741399860304,6.4276,140.02,139.99,0.033]
[1741399861626,6.4271,140.03,139.99,0.033]
[1741399861809,0.03,140.04,140.01,20.99215228]
[1741399862349,27.44885228,140.04,139.99,0.033]
[1741399862533,43.51565228,140.04,139.99,0.033]
[1741399862728,6.4567,140.04,140.0,20.99215228]
[1741399863322,6.4567,140.04,139.99,21.02515228]
[1741399863526,27.44885228,140.04,139.99,0.033]
[1741399863853,6.4567,140.04,139.99,21.02515228]
[1741399864149,0.03,140.04,140.01,20.99215228]
[1741399864535,0.03,140.04,139.99,0.033]
[1741399864733,0.03,140.04,140.0,20.99215228]
[1741399864938,6.4567,140.04,140.0,20.99215228]
[1741399865246,20.99215228,140.02,139.99,0.033]
[1741399865625,103.29215228,140.03,139.99,0.033]
[1741399865955,88.7276,140.03,139.99,0.033]
[1741399867458,82.3,140.03,140.01,20.99215228]
[1741399867625,88.7272,140.03,139.99,0.033]
[1741399868029,109.71935228,140.03,139.99,0.033]
[1741399868830,88.7272,140.03,139.99,0.033]
[1741399869029,82.3,140.02,139.99,21.02515228]
[1741399869225,82.3,140.02,140.01,20.99215228]
[1741399871848,88.7278,140.02,139.99,0.033]
[1741399872258,88.7278,140.02,139.99,21.02515228]
[1741399872441,82.3,140.01,139.99,0.033]
[1741399873641,6.4285,140.0,139.99,0.033]
[1741399874558,88.7282,140.01,139.99,0.033]
[1741399876449,82.3,140.0,139.99,0.033]
[1741399877851,20.99215228,140.0,139.99,0.033]
[1741399878661,27.42065228,140.0,139.99,0.033]
[1741399879651,6.4285,140.0,139.99,0.033]
[1741399880578,1.5505,140.02,139.99,0.033]
[1741399880761,7.9782,140.02,139.99,0.033]
[1741399880962,6.4277,140.02,139.99,0.033]
[1741399881453,6.4273,140.03,139.99,0.033]
[1741399881665,6.4568,140.04,139.99,21.02515228]
[1741399881869,6.4568,140.04,140.0,20.99215228]
[1741399883160,0.03,140.04,140.01,20.99215228]
[1741399884675,0.03,140.04,140.0,20.99215228]